[Event "Titled Tuesday Blitz August 08 Early 2023"]
[White "Nagare Kaivalya Sandip"]
[Black "Narayanan, Srinath"]
[WhiteFideId "25957929"]
[BlackFideId "5018420"]
[WhiteElo "2673"]
[BlackElo "2861"]
[Result "1-0"]
[Round "8"]
[TimeControl "180+1"]
[Date "2023.08.08"]
[WhiteClock "0:00:16"]
[BlackClock "0:00:15"]
[Board "49"]

1. e4 {[%clk 0:03:00]}  c5 {[%clk 0:02:57]} 2. Nf3 {[%clk 0:03:01]}  d6 {[%clk 0:02:57]} 3. d4 {[%clk 0:03:01]}  cxd4 {[%clk 0:02:58]} 4. Nxd4 {[%clk 0:03:02]}  Nf6 {[%clk 0:02:57]} 5. Nc3 {[%clk 0:03:03]}  Nc6 {[%clk 0:02:55]} 6. Bg5 {[%clk 0:03:02]}  e6 {[%clk 0:02:55]} 7. Qd2 {[%clk 0:03:02]}  a6 {[%clk 0:02:53]} 8. O-O-O {[%clk 0:03:02]}  Be7 {[%clk 0:02:53]} 9. f3 {[%clk 0:03:01]}  O-O {[%clk 0:02:52]} 10. h4 {[%clk 0:03:01]}  Nxd4 {[%clk 0:02:52]} 11. Qxd4 {[%clk 0:03:01]}  b5 {[%clk 0:02:53]} 12. Kb1 {[%clk 0:03:01]}  Bb7 {[%clk 0:02:53]} 13. Qd2 {[%clk 0:03:01]}  Rc8 {[%clk 0:02:51]} 14. Bd3 {[%clk 0:03:01]}  Re8 {[%clk 0:02:50]} 15. g4 {[%clk 0:03:01]}  Nd7 {[%clk 0:02:44]} 16. Ne2 {[%clk 0:02:36]}  Ne5 {[%clk 0:02:36]} 17. Nd4 {[%clk 0:02:36]}  Qb6 {[%clk 0:02:35]} 18. Be3 {[%clk 0:02:32]}  Qc7 {[%clk 0:02:21]} 19. g5 {[%clk 0:02:30]}  d5 {[%clk 0:02:21]} 20. exd5 {[%clk 0:02:14]}  Bxd5 {[%clk 0:02:22]} 21. h5 {[%clk 0:02:13]}  Nxd3 {[%clk 0:02:05]} 22. Qxd3 {[%clk 0:02:03]}  Qc4 {[%clk 0:02:04]} 23. Qxc4 {[%clk 0:01:50]}  Rxc4 {[%clk 0:02:05]} 24. g6 {[%clk 0:01:45]}  fxg6 {[%clk 0:01:57]} 25. hxg6 {[%clk 0:01:44]}  hxg6 {[%clk 0:01:58]} 26. Rhg1 {[%clk 0:01:23]}  Kf7 {[%clk 0:01:56]} 27. f4 {[%clk 0:01:21]}  Be4 {[%clk 0:01:49]} 28. Rge1 {[%clk 0:01:01]}  Bf6 {[%clk 0:01:40]} 29. Rd2 {[%clk 0:00:59]}  Rec8 {[%clk 0:01:35]} 30. Ka1 {[%clk 0:00:55]}  Bxc2 {[%clk 0:01:31]} 31. Nxc2 {[%clk 0:00:35]}  Rxc2 {[%clk 0:01:32]} 32. Kb1 {[%clk 0:00:33]}  Rxd2 {[%clk 0:01:22]} 33. Bxd2 {[%clk 0:00:34]}  Rc4 {[%clk 0:01:23]} 34. Rh1 {[%clk 0:00:32]}  Re4 {[%clk 0:01:17]} 35. Rh8 {[%clk 0:00:32]}  Re2 {[%clk 0:01:14]} 36. Bc1 {[%clk 0:00:31]}  Re1 {[%clk 0:01:12]} 37. Kc2 {[%clk 0:00:31]}  Re4 {[%clk 0:01:02]} 38. b3 {[%clk 0:00:26]}  Re2+ {[%clk 0:01:02]} 39. Bd2 {[%clk 0:00:26]}  g5 {[%clk 0:00:58]} 40. Kd3 {[%clk 0:00:25]}  Rg2 {[%clk 0:00:59]} 41. fxg5 {[%clk 0:00:22]}  Bxg5 {[%clk 0:01:00]} 42. Bxg5 {[%clk 0:00:22]}  Rxg5 {[%clk 0:01:01]} 43. Ra8 {[%clk 0:00:21]}  Rf5 {[%clk 0:00:46]} 44. Rxa6 {[%clk 0:00:20]}  g5 {[%clk 0:00:47]} 45. a4 {[%clk 0:00:19]}  bxa4 {[%clk 0:00:46]} 46. Rxa4 {[%clk 0:00:19]}  Rf3+ {[%clk 0:00:44]} 47. Kc2 {[%clk 0:00:18]}  Kf6 {[%clk 0:00:45]} 48. b4 {[%clk 0:00:18]}  Rf4 {[%clk 0:00:45]} 49. Kb3 {[%clk 0:00:16]}  g4 {[%clk 0:00:41]} 50. Ra1 {[%clk 0:00:16]}  Ke7 {[%clk 0:00:30]} 51. b5 {[%clk 0:00:16]}  Kd6 {[%clk 0:00:31]} 52. Rc1 {[%clk 0:00:16]}  Rf7 {[%clk 0:00:05]} 53. Kb4 {[%clk 0:00:15]}  Ke5 {[%clk 0:00:04]} 54. b6 {[%clk 0:00:15]}  g3 {[%clk 0:00:03]} 55. Rg1 {[%clk 0:00:13]}  Rg7 {[%clk 0:00:02]} 56. Kc5 {[%clk 0:00:12]}  Kf4 {[%clk 0:00:01]} 57. Kc6 {[%clk 0:00:11]}  e5 {[%clk 0:00:01]} 58. b7 {[%clk 0:00:10]}  Rg8 {[%clk 0:00:02]} 59. Rf1+ {[%clk 0:00:08]}  Ke3 {[%clk 0:00:02]} 60. Re1+ {[%clk 0:00:06]}  Kf2 {[%clk 0:00:03]} 61. Rxe5 {[%clk 0:00:06]}  g2 {[%clk 0:00:03]} 62. Rf5+ {[%clk 0:00:06]}  Ke2 {[%clk 0:00:04]} 63. Re5+ {[%clk 0:00:06]}  Kd2 {[%clk 0:00:04]} 64. Rd5+ {[%clk 0:00:06]}  Kc2 {[%clk 0:00:05]} 65. Rc5+ {[%clk 0:00:07]}  Kd3 {[%clk 0:00:06]} 66. Rc1 {[%clk 0:00:06]}  Kd2 {[%clk 0:00:06]} 67. Rg1 {[%clk 0:00:06]}  Rg6+ {[%clk 0:00:06]} 68. Kb5 {[%clk 0:00:06]}  Rg5+ {[%clk 0:00:07]} 69. Ka6 {[%clk 0:00:06]}  Rg6+ {[%clk 0:00:07]} 70. Ka7 {[%clk 0:00:07]}  Rg7 {[%clk 0:00:07]} 71. Ka8 {[%clk 0:00:07]}  Ke3 {[%clk 0:00:05]} 72. b8=Q {[%clk 0:00:07]}  Kf2 {[%clk 0:00:04]} 73. Qb6+ {[%clk 0:00:07]}  Kg3 {[%clk 0:00:05]} 74. Qe3+ {[%clk 0:00:07]}  Kh2 {[%clk 0:00:05]} 75. Qh6+ {[%clk 0:00:07]}  Kxg1 {[%clk 0:00:04]} 76. Qxg7 {[%clk 0:00:08]}  Kh1 {[%clk 0:00:05]} 77. Qh6+ {[%clk 0:00:09]}  Kg1 {[%clk 0:00:06]} 78. Kb7 {[%clk 0:00:09]}  Kf1 {[%clk 0:00:07]} 79. Qf4+ {[%clk 0:00:09]}  Ke2 {[%clk 0:00:08]} 80. Qg3 {[%clk 0:00:10]}  Kf1 {[%clk 0:00:08]} 81. Qf3+ {[%clk 0:00:10]}  Kg1 {[%clk 0:00:09]} 82. Kc6 {[%clk 0:00:11]}  Kh2 {[%clk 0:00:10]} 83. Qf2 {[%clk 0:00:11]}  Kh1 {[%clk 0:00:09]} 84. Qh4+ {[%clk 0:00:11]}  Kg1 {[%clk 0:00:10]} 85. Kd5 {[%clk 0:00:12]}  Kf1 {[%clk 0:00:11]} 86. Qf4+ {[%clk 0:00:12]}  Ke2 {[%clk 0:00:11]} 87. Qg3 {[%clk 0:00:13]}  Kf1 {[%clk 0:00:12]} 88. Qf3+ {[%clk 0:00:13]}  Kg1 {[%clk 0:00:13]} 89. Ke4 {[%clk 0:00:14]}  Kh2 {[%clk 0:00:13]} 90. Qf2 {[%clk 0:00:14]}  Kh1 {[%clk 0:00:14]} 91. Qh4+ {[%clk 0:00:14]}  Kg1 {[%clk 0:00:14]} 92. Kf3 {[%clk 0:00:15]}  Kf1 {[%clk 0:00:15]} 93. Qf2# {[%clk 0:00:16]} 1-0


[Site "https://www.chess.com"]

[Event "Titled Tuesday Blitz August 08 Early 2023"]
[White "Pranav Anand"]
[Black "Goroshkov, Maksym"]
[WhiteFideId "46626786"]
[BlackFideId "14142716"]
[WhiteElo "2856"]
[BlackElo "2659"]
[Result "1-0"]
[Round "8"]
[TimeControl "180+1"]
[Date "2023.08.08"]
[WhiteClock "0:00:39"]
[BlackClock "0:00:13"]
[Board "50"]

1. Nf3 {[%clk 0:02:58]}  Nf6 {[%clk 0:02:58]} 2. c4 {[%clk 0:02:58]}  g6 {[%clk 0:02:59]} 3. g3 {[%clk 0:02:59]}  Bg7 {[%clk 0:02:59]} 4. Bg2 {[%clk 0:03:00]}  O-O {[%clk 0:03:00]} 5. O-O {[%clk 0:03:01]}  d6 {[%clk 0:03:01]} 6. d3 {[%clk 0:03:01]}  c5 {[%clk 0:03:02]} 7. Nc3 {[%clk 0:03:00]}  Nc6 {[%clk 0:03:02]} 8. a3 {[%clk 0:03:00]}  e5 {[%clk 0:03:02]} 9. Bg5 {[%clk 0:02:59]}  h6 {[%clk 0:03:02]} 10. Bxf6 {[%clk 0:03:00]}  Bxf6 {[%clk 0:03:03]} 11. Ne1 {[%clk 0:03:00]}  Bg7 {[%clk 0:03:01]} 12. Nc2 {[%clk 0:03:00]}  Nd4 {[%clk 0:02:58]} 13. Ne3 {[%clk 0:02:56]}  Rb8 {[%clk 0:02:56]} 14. Ned5 {[%clk 0:02:56]}  b5 {[%clk 0:02:52]} 15. b4 {[%clk 0:02:53]}  bxc4 {[%clk 0:02:49]} 16. dxc4 {[%clk 0:02:54]}  f5 {[%clk 0:02:44]} 17. Qa4 {[%clk 0:02:43]}  e4 {[%clk 0:02:40]} 18. Rab1 {[%clk 0:02:39]}  a6 {[%clk 0:02:35]} 19. e3 {[%clk 0:02:06]}  Nf3+ {[%clk 0:02:24]} 20. Bxf3 {[%clk 0:02:03]}  exf3 {[%clk 0:02:25]} 21. bxc5 {[%clk 0:02:02]}  Rxb1 {[%clk 0:02:18]} 22. Rxb1 {[%clk 0:02:03]}  dxc5 {[%clk 0:02:19]} 23. Qc6 {[%clk 0:02:03]}  Kh7 {[%clk 0:02:05]} 24. Rb6 {[%clk 0:01:48]}  Qe8 {[%clk 0:01:43]} 25. Qxe8 {[%clk 0:01:45]}  Rxe8 {[%clk 0:01:44]} 26. Na4 {[%clk 0:01:43]}  Re4 {[%clk 0:01:41]} 27. Rb1 {[%clk 0:01:32]}  Rxc4 {[%clk 0:01:39]} 28. Nab6 {[%clk 0:01:32]}  Be6 {[%clk 0:01:28]} 29. Nxc4 {[%clk 0:01:32]}  Bxd5 {[%clk 0:01:29]} 30. Nd6 {[%clk 0:01:27]}  c4 {[%clk 0:01:27]} 31. Rd1 {[%clk 0:01:25]}  Be6 {[%clk 0:01:23]} 32. Rc1 {[%clk 0:01:21]}  c3 {[%clk 0:01:23]} 33. Nb7 {[%clk 0:01:13]}  Bc4 {[%clk 0:01:08]} 34. Nc5 {[%clk 0:01:11]}  a5 {[%clk 0:01:05]} 35. Na4 {[%clk 0:01:08]}  c2 {[%clk 0:01:06]} 36. Nc5 {[%clk 0:00:51]}  a4 {[%clk 0:00:50]} 37. Rxc2 {[%clk 0:00:48]}  Bb3 {[%clk 0:00:50]} 38. Nxb3 {[%clk 0:00:47]}  axb3 {[%clk 0:00:51]} 39. Rc7 {[%clk 0:00:47]}  Kg8 {[%clk 0:00:45]} 40. Rb7 {[%clk 0:00:48]}  b2 {[%clk 0:00:44]} 41. a4 {[%clk 0:00:49]}  Bc3 {[%clk 0:00:39]} 42. a5 {[%clk 0:00:47]}  Bxa5 {[%clk 0:00:40]} 43. Rxb2 {[%clk 0:00:47]}  Kf7 {[%clk 0:00:40]} 44. Rb5 {[%clk 0:00:45]}  Bc3 {[%clk 0:00:38]} 45. h3 {[%clk 0:00:45]}  h5 {[%clk 0:00:34]} 46. g4 {[%clk 0:00:42]}  hxg4 {[%clk 0:00:33]} 47. hxg4 {[%clk 0:00:43]}  fxg4 {[%clk 0:00:34]} 48. Kh2 {[%clk 0:00:44]}  Kf6 {[%clk 0:00:16]} 49. Kg3 {[%clk 0:00:44]}  Be1 {[%clk 0:00:17]} 50. Rd5 {[%clk 0:00:39]}  g5 {[%clk 0:00:13]} 51. Rd1 {[%clk 0:00:37]}  Bxf2+ {[%clk 0:00:12]} 52. Kxf2 {[%clk 0:00:37]}  Kf5 {[%clk 0:00:13]} 53. Rg1 {[%clk 0:00:38]}  Kg6 {[%clk 0:00:12]} 54. Rxg4 {[%clk 0:00:38]}  Kh5 {[%clk 0:00:12]} 55. Kxf3 {[%clk 0:00:39]}  Kg6 {[%clk 0:00:13]} 56. e4 {[%clk 0:00:40]}  Kf6 {[%clk 0:00:13]} 57. Ke3 {[%clk 0:00:39]}  Ke5 {[%clk 0:00:13]} 58. Kd3 {[%clk 0:00:39]} 1-0


[Site "https://www.chess.com"]

[Event "Titled Tuesday Blitz August 08 Early 2023"]
[White "Rustemov, Alexander"]
[Black "Sagita, Catur Adi"]
[WhiteFideId "4119002"]
[BlackFideId "7104618"]
[WhiteElo "2822"]
[BlackElo "2658"]
[Result "1-0"]
[Round "8"]
[TimeControl "180+1"]
[Date "2023.08.08"]
[WhiteClock "0:00:55"]
[BlackClock "0:00:01"]
[Board "51"]

1. d4 {[%clk 0:02:55]}  Nf6 {[%clk 0:02:52]} 2. c4 {[%clk 0:02:55]}  e6 {[%clk 0:02:48]} 3. Nf3 {[%clk 0:02:55]}  b6 {[%clk 0:02:44]} 4. a3 {[%clk 0:02:55]}  Bb7 {[%clk 0:02:43]} 5. Nc3 {[%clk 0:02:55]}  Be7 {[%clk 0:02:44]} 6. Qc2 {[%clk 0:02:49]}  d5 {[%clk 0:02:44]} 7. cxd5 {[%clk 0:02:40]}  Nxd5 {[%clk 0:02:44]} 8. Bd2 {[%clk 0:02:38]}  O-O {[%clk 0:02:42]} 9. e4 {[%clk 0:02:38]}  Nxc3 {[%clk 0:02:42]} 10. Bxc3 {[%clk 0:02:39]}  Nd7 {[%clk 0:02:41]} 11. Rd1 {[%clk 0:02:39]}  Qc8 {[%clk 0:02:27]} 12. Bc4 {[%clk 0:02:31]}  c5 {[%clk 0:02:15]} 13. d5 {[%clk 0:02:19]}  exd5 {[%clk 0:02:15]} 14. exd5 {[%clk 0:02:17]}  Bf6 {[%clk 0:02:08]} 15. O-O {[%clk 0:02:16]}  a6 {[%clk 0:02:00]} 16. a4 {[%clk 0:02:13]}  Re8 {[%clk 0:01:58]} 17. Qb3 {[%clk 0:02:01]}  Bxc3 {[%clk 0:01:08]} 18. bxc3 {[%clk 0:01:58]}  Rf8 {[%clk 0:00:48]} 19. Rfe1 {[%clk 0:01:54]}  Qb8 {[%clk 0:00:46]} 20. d6 {[%clk 0:01:53]}  Bxf3 {[%clk 0:00:46]} 21. gxf3 {[%clk 0:01:51]}  Kh8 {[%clk 0:00:20]} 22. Re7 {[%clk 0:01:47]}  Qd8 {[%clk 0:00:17]} 23. Bxf7 {[%clk 0:01:43]}  Nf6 {[%clk 0:00:14]} 24. Qe6 {[%clk 0:01:34]}  b5 {[%clk 0:00:11]} 25. axb5 {[%clk 0:01:32]}  axb5 {[%clk 0:00:11]} 26. Rc7 {[%clk 0:01:29]}  b4 {[%clk 0:00:07]} 27. Rxc5 {[%clk 0:01:25]}  Ra7 {[%clk 0:00:07]} 28. Bh5 {[%clk 0:01:09]}  bxc3 {[%clk 0:00:03]} 29. Bg4 {[%clk 0:01:05]}  c2 {[%clk 0:00:01]} 30. Rxc2 {[%clk 0:01:04]}  Ra5 {[%clk 0:00:01]} 31. d7 {[%clk 0:00:57]}  h5 {[%clk 0:00:01]} 32. Rc8 {[%clk 0:00:55]} 1-0


[Site "https://www.chess.com"]

[Event "Titled Tuesday Blitz August 08 Early 2023"]
[White "Goltsev, Dmitry"]
[Black "Sethuraman, S.P."]
[WhiteFideId "24176710"]
[BlackFideId "5021596"]
[WhiteElo "2640"]
[BlackElo "2788"]
[Result "0-1"]
[Round "8"]
[TimeControl "180+1"]
[Date "2023.08.08"]
[WhiteClock "0:00:00"]
[BlackClock "0:00:05"]
[Board "54"]

1. e4 {[%clk 0:03:00]}  c5 {[%clk 0:02:59]} 2. Nf3 {[%clk 0:03:00]}  d6 {[%clk 0:02:59]} 3. d4 {[%clk 0:03:00]}  cxd4 {[%clk 0:03:00]} 4. Nxd4 {[%clk 0:03:01]}  Nf6 {[%clk 0:03:00]} 5. Nc3 {[%clk 0:03:02]}  e6 {[%clk 0:03:00]} 6. Be2 {[%clk 0:03:02]}  Be7 {[%clk 0:03:00]} 7. O-O {[%clk 0:03:03]}  O-O {[%clk 0:03:00]} 8. Be3 {[%clk 0:03:04]}  a6 {[%clk 0:03:00]} 9. f4 {[%clk 0:03:03]}  b5 {[%clk 0:03:01]} 10. Bf3 {[%clk 0:03:04]}  Nfd7 {[%clk 0:02:52]} 11. e5 {[%clk 0:03:04]}  d5 {[%clk 0:02:52]} 12. Nxd5 {[%clk 0:03:02]}  exd5 {[%clk 0:02:51]} 13. Bxd5 {[%clk 0:03:03]}  Ra7 {[%clk 0:02:45]} 14. e6 {[%clk 0:03:02]}  Nb6 {[%clk 0:02:32]} 15. exf7+ {[%clk 0:03:00]}  Kh8 {[%clk 0:02:32]} 16. Bb3 {[%clk 0:02:59]}  Bc5 {[%clk 0:02:20]} 17. c3 {[%clk 0:02:51]}  Nc4 {[%clk 0:02:18]} 18. Bf2 {[%clk 0:02:12]}  Raxf7 {[%clk 0:02:11]} 19. g3 {[%clk 0:02:10]}  Qb6 {[%clk 0:01:56]} 20. Qh5 {[%clk 0:02:08]}  Nd7 {[%clk 0:01:45]} 21. Bc2 {[%clk 0:02:01]}  Nf6 {[%clk 0:01:44]} 22. Qh4 {[%clk 0:02:00]}  Bb7 {[%clk 0:01:39]} 23. Rae1 {[%clk 0:01:53]}  Bxd4 {[%clk 0:01:35]} 24. Bxd4 {[%clk 0:01:52]}  Qc6 {[%clk 0:01:35]} 25. Qh3 {[%clk 0:01:43]}  Qh1+ {[%clk 0:01:24]} 26. Kf2 {[%clk 0:01:41]}  Ng4+ {[%clk 0:01:22]} 27. Ke2 {[%clk 0:01:36]}  Qxh2+ {[%clk 0:01:19]} 28. Qxh2 {[%clk 0:01:36]}  Nxh2 {[%clk 0:01:20]} 29. Rh1 {[%clk 0:01:00]}  Bf3+ {[%clk 0:01:18]} 30. Kf2 {[%clk 0:00:56]}  Bxh1 {[%clk 0:01:18]} 31. Rxh1 {[%clk 0:00:53]}  Ng4+ {[%clk 0:01:18]} 32. Kf3 {[%clk 0:00:54]}  Nf6 {[%clk 0:01:10]} 33. g4 {[%clk 0:00:53]}  Nd2+ {[%clk 0:01:03]} 34. Ke3 {[%clk 0:00:49]}  Nc4+ {[%clk 0:01:01]} 35. Kf3 {[%clk 0:00:49]}  Nd2+ {[%clk 0:00:42]} 36. Ke3 {[%clk 0:00:47]}  Nfe4 {[%clk 0:00:38]} 37. Be5 {[%clk 0:00:34]}  Nc4+ {[%clk 0:00:21]} 38. Kxe4 {[%clk 0:00:33]}  Nxe5 {[%clk 0:00:21]} 39. Kxe5 {[%clk 0:00:30]}  Re8+ {[%clk 0:00:19]} 40. Kd5 {[%clk 0:00:24]}  h6 {[%clk 0:00:13]} 41. g5 {[%clk 0:00:20]}  Rxf4 {[%clk 0:00:12]} 42. gxh6 {[%clk 0:00:20]}  g5 {[%clk 0:00:13]} 43. Kc6 {[%clk 0:00:14]}  g4 {[%clk 0:00:12]} 44. h7 {[%clk 0:00:11]}  g3 {[%clk 0:00:11]} 45. Rg1 {[%clk 0:00:12]}  Rg4 {[%clk 0:00:10]} 46. Kb6 {[%clk 0:00:10]}  Re6+ {[%clk 0:00:10]} 47. Ka5 {[%clk 0:00:04]}  Rf6 {[%clk 0:00:09]} 48. b3 {[%clk 0:00:04]}  g2 {[%clk 0:00:09]} 49. Bd3 {[%clk 0:00:03]}  Rg3 {[%clk 0:00:06]} 50. Be4 {[%clk 0:00:04]}  Rf2 {[%clk 0:00:06]} 51. Kxa6 {[%clk 0:00:03]}  Rxa2+ {[%clk 0:00:04]} 52. Kxb5 {[%clk 0:00:01]}  Re2 {[%clk 0:00:05]} 53. Kc4 {[%clk 0:00:02]}  Rxe4+ {[%clk 0:00:05]} 54. Kd5 {[%clk 0:00:03]}  Rf4 {[%clk 0:00:05]} 55. b4 {[%clk 0:00:03]}  Rf1 {[%clk 0:00:05]} 56. Rxg2 {[%clk 0:00:04]}  Rxg2 {[%clk 0:00:06]} 57. Kc6 {[%clk 0:00:03]}  Rg6+ {[%clk 0:00:06]} 58. Kb5 {[%clk 0:00:03]}  Rg7 {[%clk 0:00:07]} 59. c4 {[%clk 0:00:04]}  Kxh7 {[%clk 0:00:07]} 60. c5 {[%clk 0:00:04]}  Rf4 {[%clk 0:00:06]} 61. Ka5 {[%clk 0:00:04]}  Rc7 {[%clk 0:00:06]} 62. Kb6 {[%clk 0:00:03]}  Rff7 {[%clk 0:00:05]} 63. b5 {[%clk 0:00:03]}  Rb7+ {[%clk 0:00:05]} 64. Ka6 {[%clk 0:00:03]}  Ra7+ {[%clk 0:00:06]} 65. Kb6 {[%clk 0:00:04]}  Rfb7+ {[%clk 0:00:06]} 66. Kc6 {[%clk 0:00:04]}  Rc7+ {[%clk 0:00:07]} 67. Kd6 {[%clk 0:00:04]}  Kg7 {[%clk 0:00:06]} 68. b6 {[%clk 0:00:04]}  Rd7+ {[%clk 0:00:07]} 69. Kc6 {[%clk 0:00:04]}  Rab7 {[%clk 0:00:07]} 70. Kb5 {[%clk 0:00:05]}  Kf7 {[%clk 0:00:06]} 71. c6 {[%clk 0:00:05]}  Rd5+ {[%clk 0:00:04]} 72. Ka6 {[%clk 0:00:05]}  Rxb6+ {[%clk 0:00:04]} 73. Kxb6 {[%clk 0:00:05]}  Ke7 {[%clk 0:00:05]} 74. c7 {[%clk 0:00:05]}  Kd7 {[%clk 0:00:04]} 75. Kb7 {[%clk 0:00:04]}  Rc5 {[%clk 0:00:05]} 76. c8=Q+ {[%clk 0:00:00]}  Rxc8 {[%clk 0:00:05]} 0-1


[Site "https://www.chess.com"]

[Event "Titled Tuesday Blitz August 08 Early 2023"]
[White "Malek, Jan"]
[Black "Gan-Od, Sereenen"]
[WhiteFideId "21864080"]
[BlackFideId "4901304"]
[WhiteElo "2614"]
[BlackElo "2767"]
[Result "0-1"]
[Round "8"]
[TimeControl "180+1"]
[Date "2023.08.08"]
[WhiteClock "0:00:00"]
[BlackClock "0:01:19"]
[Board "58"]

1. b3 {[%clk 0:03:00]}  Nf6 {[%clk 0:02:59]} 2. Bb2 {[%clk 0:02:59]}  e6 {[%clk 0:03:00]} 3. g3 {[%clk 0:02:59]}  Be7 {[%clk 0:03:00]} 4. Bg2 {[%clk 0:02:59]}  O-O {[%clk 0:03:01]} 5. e3 {[%clk 0:03:00]}  d5 {[%clk 0:03:01]} 6. Ne2 {[%clk 0:03:01]}  b6 {[%clk 0:03:01]} 7. d3 {[%clk 0:03:02]}  Bb7 {[%clk 0:03:02]} 8. Nd2 {[%clk 0:03:03]}  c5 {[%clk 0:03:03]} 9. a3 {[%clk 0:03:04]}  Nc6 {[%clk 0:03:03]} 10. h3 {[%clk 0:03:04]}  Rc8 {[%clk 0:03:03]} 11. O-O {[%clk 0:03:03]}  Qc7 {[%clk 0:03:04]} 12. Kh1 {[%clk 0:03:00]}  Rfd8 {[%clk 0:03:04]} 13. Ra2 {[%clk 0:02:58]}  Nd7 {[%clk 0:03:04]} 14. Qa1 {[%clk 0:02:58]}  Bf6 {[%clk 0:03:03]} 15. Bxf6 {[%clk 0:02:55]}  Nxf6 {[%clk 0:03:04]} 16. Qb2 {[%clk 0:02:53]}  e5 {[%clk 0:03:04]} 17. b4 {[%clk 0:02:53]}  c4 {[%clk 0:02:56]} 18. d4 {[%clk 0:02:31]}  exd4 {[%clk 0:02:54]} 19. exd4 {[%clk 0:02:32]}  Re8 {[%clk 0:02:54]} 20. Nf4 {[%clk 0:02:32]}  g5 {[%clk 0:02:42]} 21. Nxd5 {[%clk 0:02:27]}  Nxd5 {[%clk 0:02:42]} 22. Bxd5 {[%clk 0:02:27]}  Ne7 {[%clk 0:02:43]} 23. Bxb7 {[%clk 0:02:13]}  Qxb7+ {[%clk 0:02:44]} 24. Kg1 {[%clk 0:02:12]}  c3 {[%clk 0:02:44]} 25. Qc1 {[%clk 0:02:12]}  cxd2 {[%clk 0:02:44]} 26. Qxd2 {[%clk 0:02:13]}  h6 {[%clk 0:02:43]} 27. Raa1 {[%clk 0:02:12]}  Qf3 {[%clk 0:02:42]} 28. Rfe1 {[%clk 0:02:10]}  Nd5 {[%clk 0:02:42]} 29. Re5 {[%clk 0:01:58]}  Rxe5 {[%clk 0:02:38]} 30. dxe5 {[%clk 0:01:59]}  Nc3 {[%clk 0:02:39]} 31. Re1 {[%clk 0:01:59]}  Qd5 {[%clk 0:02:31]} 32. Qe3 {[%clk 0:01:54]}  Rc4 {[%clk 0:02:14]} 33. h4 {[%clk 0:01:45]}  Ne4 {[%clk 0:02:05]} 34. Qf3 {[%clk 0:01:00]}  Qc6 {[%clk 0:01:48]} 35. Qf5 {[%clk 0:00:47]}  Qe6 {[%clk 0:01:44]} 36. Qf3 {[%clk 0:00:42]}  Qxe5 {[%clk 0:01:44]} 37. hxg5 {[%clk 0:00:41]}  hxg5 {[%clk 0:01:42]} 38. Qg4 {[%clk 0:00:39]}  Nf6 {[%clk 0:01:37]} 39. Rxe5 {[%clk 0:00:23]}  Rxg4 {[%clk 0:01:37]} 40. Re7 {[%clk 0:00:11]}  Rc4 {[%clk 0:01:36]} 41. Rxa7 {[%clk 0:00:11]}  Rxc2 {[%clk 0:01:36]} 42. Ra6 {[%clk 0:00:09]}  Ne4 {[%clk 0:01:32]} 43. Rxb6 {[%clk 0:00:08]}  Nxf2 {[%clk 0:01:32]} 44. Rb5 {[%clk 0:00:07]}  f6 {[%clk 0:01:31]} 45. Rf5 {[%clk 0:00:05]}  Ne4 {[%clk 0:01:29]} 46. a4 {[%clk 0:00:04]}  Ra2 {[%clk 0:01:28]} 47. a5 {[%clk 0:00:04]}  Kf7 {[%clk 0:01:27]} 48. Rb5 {[%clk 0:00:02]}  Nxg3 {[%clk 0:01:26]} 49. Rb6 {[%clk 0:00:02]}  f5 {[%clk 0:01:26]} 50. a6 {[%clk 0:00:03]}  f4 {[%clk 0:01:26]} 51. Rb7+ {[%clk 0:00:02]}  Kf6 {[%clk 0:01:26]} 52. Rb6+ {[%clk 0:00:02]}  Kf5 {[%clk 0:01:26]} 53. Rb5+ {[%clk 0:00:02]}  Kg4 {[%clk 0:01:24]} 54. Ra5 {[%clk 0:00:03]}  Rb2 {[%clk 0:01:20]} 55. a7 {[%clk 0:00:00]}  f3 {[%clk 0:01:19]} 0-1


[Site "https://www.chess.com"]

[Event "Titled Tuesday Blitz August 08 Early 2023"]
[White "Sychev, Klementy"]
[Black "Colbow, Collin"]
[WhiteFideId "4114060"]
[BlackFideId "16201132"]
[WhiteElo "2765"]
[BlackElo "2607"]
[Result "1-0"]
[Round "8"]
[TimeControl "180+1"]
[Date "2023.08.08"]
[WhiteClock "0:00:16"]
[BlackClock "0:00:09"]
[Board "59"]

1. e4 {[%clk 0:03:00]}  c6 {[%clk 0:02:52]} 2. c4 {[%clk 0:03:00]}  d5 {[%clk 0:02:51]} 3. cxd5 {[%clk 0:03:01]}  cxd5 {[%clk 0:02:51]} 4. exd5 {[%clk 0:03:01]}  Nf6 {[%clk 0:02:51]} 5. Qa4+ {[%clk 0:03:01]}  Bd7 {[%clk 0:02:44]} 6. Qb3 {[%clk 0:03:00]}  Qc7 {[%clk 0:02:16]} 7. Nc3 {[%clk 0:03:00]}  Na6 {[%clk 0:02:07]} 8. d4 {[%clk 0:02:59]}  g6 {[%clk 0:01:47]} 9. Nf3 {[%clk 0:02:50]}  Bg7 {[%clk 0:01:47]} 10. Be2 {[%clk 0:02:47]}  O-O {[%clk 0:01:47]} 11. O-O {[%clk 0:02:47]}  Bf5 {[%clk 0:01:40]} 12. Ne5 {[%clk 0:02:44]}  Rfd8 {[%clk 0:01:25]} 13. Nxf7 {[%clk 0:02:41]}  Rf8 {[%clk 0:00:52]} 14. Ne5 {[%clk 0:02:21]}  Kh8 {[%clk 0:00:51]} 15. Bf4 {[%clk 0:02:16]}  Qb6 {[%clk 0:00:47]} 16. Qxb6 {[%clk 0:02:09]}  axb6 {[%clk 0:00:48]} 17. a3 {[%clk 0:01:56]}  Rad8 {[%clk 0:00:48]} 18. Bf3 {[%clk 0:01:46]}  Nh5 {[%clk 0:00:26]} 19. Bg5 {[%clk 0:01:44]}  Nf6 {[%clk 0:00:22]} 20. Nc4 {[%clk 0:01:33]}  h6 {[%clk 0:00:20]} 21. Be3 {[%clk 0:01:23]}  b5 {[%clk 0:00:20]} 22. Ne5 {[%clk 0:01:20]}  b4 {[%clk 0:00:18]} 23. axb4 {[%clk 0:01:19]}  Nxb4 {[%clk 0:00:19]} 24. g4 {[%clk 0:01:20]}  Bc2 {[%clk 0:00:07]} 25. Rfc1 {[%clk 0:01:19]}  Nd7 {[%clk 0:00:05]} 26. Bg2 {[%clk 0:01:11]}  Nxe5 {[%clk 0:00:05]} 27. dxe5 {[%clk 0:01:11]}  Bxe5 {[%clk 0:00:05]} 28. Bc5 {[%clk 0:01:12]}  Nd3 {[%clk 0:00:04]} 29. Bxe7 {[%clk 0:01:06]}  Nxc1 {[%clk 0:00:05]} 30. Rxc1 {[%clk 0:01:05]}  Bb3 {[%clk 0:00:06]} 31. Bxf8 {[%clk 0:00:54]}  Rxf8 {[%clk 0:00:07]} 32. Nb5 {[%clk 0:00:54]}  h5 {[%clk 0:00:04]} 33. h3 {[%clk 0:00:52]}  hxg4 {[%clk 0:00:04]} 34. hxg4 {[%clk 0:00:52]}  Bf4 {[%clk 0:00:04]} 35. Rc3 {[%clk 0:00:51]}  Bd1 {[%clk 0:00:03]} 36. Bf3 {[%clk 0:00:46]}  Bxf3 {[%clk 0:00:04]} 37. Rxf3 {[%clk 0:00:46]}  g5 {[%clk 0:00:05]} 38. d6 {[%clk 0:00:40]}  Rd8 {[%clk 0:00:04]} 39. Rd3 {[%clk 0:00:38]}  Kg7 {[%clk 0:00:05]} 40. Nd4 {[%clk 0:00:26]}  Kf6 {[%clk 0:00:03]} 41. Nf5 {[%clk 0:00:26]}  Ke6 {[%clk 0:00:01]} 42. Kg2 {[%clk 0:00:24]}  Bxd6 {[%clk 0:00:02]} 43. Rxd6+ {[%clk 0:00:22]}  Rxd6 {[%clk 0:00:03]} 44. Nxd6 {[%clk 0:00:22]}  Kxd6 {[%clk 0:00:04]} 45. Kf3 {[%clk 0:00:21]}  Ke5 {[%clk 0:00:04]} 46. Ke3 {[%clk 0:00:22]}  b5 {[%clk 0:00:03]} 47. f4+ {[%clk 0:00:14]}  gxf4+ {[%clk 0:00:03]} 48. Kf3 {[%clk 0:00:15]}  b4 {[%clk 0:00:03]} 49. b3 {[%clk 0:00:15]}  Kd4 {[%clk 0:00:04]} 50. Kxf4 {[%clk 0:00:14]}  Kc3 {[%clk 0:00:04]} 51. g5 {[%clk 0:00:15]}  Kxb3 {[%clk 0:00:05]} 52. g6 {[%clk 0:00:15]}  Kc2 {[%clk 0:00:05]} 53. g7 {[%clk 0:00:16]}  b3 {[%clk 0:00:06]} 54. g8=Q {[%clk 0:00:16]}  b2 {[%clk 0:00:07]} 55. Qc4+ {[%clk 0:00:15]}  Kd2 {[%clk 0:00:07]} 56. Qb3 {[%clk 0:00:15]}  Kc1 {[%clk 0:00:08]} 57. Qc3+ {[%clk 0:00:16]}  Kb1 {[%clk 0:00:08]} 58. Ke3 {[%clk 0:00:16]}  Ka2 {[%clk 0:00:09]} 59. Qa5+ {[%clk 0:00:16]}  Kb1 {[%clk 0:00:09]} 60. Kd3 {[%clk 0:00:15]}  Kc1 {[%clk 0:00:09]} 61. Qe1# {[%clk 0:00:16]} 1-0


[Site "https://www.chess.com"]